bitfinex/quotes_BTCUSD_20241003
["timestamp","ask_amount","ask_price","bid_price","bid_amount"]
[1727942725009,0.44619853,60988.0,60987.0,7.6e-07]
[1727942725468,0.43519853,60988.0,60987.0,7.6e-07]
[1727942725714,0.44919853,60988.0,60987.0,7.6e-07]
[1727942725953,0.56810498,60988.0,60987.0,7.6e-07]
[1727942726227,0.56810498,60988.0,60984.0,7.6e-07]
[1727942726228,0.002,60985.0,60984.0,7.6e-07]
[1727942726485,0.440679,60985.0,60984.0,7.6e-07]
[1727942726746,0.440679,60985.0,60973.0,0.000818]
[1727942726747,0.43522853,60974.0,60973.0,0.000818]
[1727942727478,0.43322853,60974.0,60973.0,0.000818]
[1727942727730,0.231203,60974.0,60973.0,0.000818]
[1727942728482,0.26292107,60974.0,60973.0,0.000818]
[1727942729016,0.16292107,60974.0,60973.0,0.000818]
[1727942729267,0.16692107,60974.0,60973.0,0.000818]
[1727942730278,0.26692107,60974.0,60973.0,0.000818]
[1727942730537,0.26092107,60974.0,60973.0,0.000818]
[1727942730798,0.26692107,60974.0,60973.0,0.000818]
[1727942731096,0.26292107,60974.0,60973.0,0.000818]
[1727942731818,0.26692107,60974.0,60973.0,0.000818]
[1727942732317,0.26292107,60974.0,60973.0,0.000818]
[1727942732550,0.26692107,60974.0,60973.0,0.000818]
[1727942732795,0.16692107,60974.0,60973.0,0.000818]
[1727942733048,0.03571807,60974.0,60973.0,0.000818]
[1727942733512,0.03571807,60974.0,60973.0,0.132023]
[1727942733768,0.03571807,60974.0,60973.0,0.000818]
[1727942733997,0.03571807,60974.0,60973.0,0.132023]
[1727942734226,0.03571807,60974.0,60973.0,0.155023]
[1727942734227,0.03171807,60974.0,60973.0,0.155023]
[1727942734455,0.29381219,60986.0,60974.0,0.023]
[1727942734673,0.29381219,60986.0,60985.0,0.131179]
[1727942734896,0.29381219,60986.0,60985.0,0.164049]
[1727942735128,0.262306,60998.0,60985.0,0.03287]
[1727942735129,0.262321,60994.0,60985.0,0.03287]
[1727942735348,0.131169,60990.0,60985.0,0.164048]
[1727942735822,0.262333,60992.0,60985.0,0.03287]
[1727942736058,0.311463,60998.0,60980.0,0.20202553]
[1727942736059,0.131188,60981.0,60980.0,0.03287]
[1727942736290,0.262312,60996.0,60965.0,0.44746492]
[1727942736291,0.131203,60974.0,60965.0,0.24543939]
[1727942736521,0.131203,60974.0,60973.0,0.24543839]
[1727942736745,0.131203,60974.0,60973.0,0.000818]
[1727942736982,0.133203,60974.0,60973.0,0.000818]
[1727942737213,0.231203,60974.0,60973.0,0.000818]
[1727942737727,0.24591628,60974.0,60973.0,0.009818]
[1727942737959,0.24591628,60974.0,60973.0,0.000818]
[1727942738187,0.24791628,60974.0,60973.0,0.000818]
[1727942738413,0.24891628,60974.0,60973.0,0.000818]
[1727942738656,0.24591628,60974.0,60973.0,0.000818]
[1727942738877,0.25291628,60974.0,60973.0,0.001818]
[1727942739771,0.25791628,60974.0,60973.0,0.001818]
[1727942740016,0.24991628,60974.0,60973.0,0.000818]
[1727942740464,0.25191628,60974.0,60973.0,0.000818]
[1727942740931,0.24691628,60974.0,60973.0,0.000818]
[1727942741171,0.14691628,60974.0,60973.0,0.000818]
[1727942741401,0.15291628,60974.0,60973.0,0.000818]
[1727942741628,0.15291628,60974.0,60973.0,0.001818]
[1727942741629,0.15991628,60974.0,60973.0,0.001818]
[1727942741852,0.14491628,60974.0,60973.0,0.000818]
[1727942742084,0.14591628,60974.0,60973.0,0.000818]
[1727942742529,0.14491628,60974.0,60973.0,0.000818]
[1727942742982,0.17063221,60974.0,60973.0,0.000818]
[1727942743216,0.17273312,60974.0,60973.0,0.000818]
[1727942743928,0.18073312,60974.0,60973.0,0.001818]
[1727942744177,0.17073312,60974.0,60973.0,0.000818]
[1727942744404,0.17773312,60974.0,60973.0,0.000818]
[1727942744623,0.17573312,60974.0,60973.0,0.000818]
[1727942745056,0.17773312,60974.0,60973.0,0.001818]
[1727942745523,0.18373312,60974.0,60973.0,0.001818]
[1727942745977,0.16391893,60974.0,60973.0,0.001818]
[1727942746201,0.16391893,60974.0,60973.0,0.000818]
[1727942746478,0.15691893,60974.0,60973.0,0.000818]
[1727942746718,0.17876147,60974.0,60973.0,0.001818]
[1727942747194,0.16204554,60974.0,60973.0,0.001818]
[1727942747420,0.15004554,60974.0,60973.0,0.000818]
[1727942747643,0.14504554,60974.0,60973.0,0.000818]
[1727942747866,0.14704554,60974.0,60973.0,0.000818]
[1727942748316,0.14804554,60974.0,60973.0,0.000818]
[1727942749244,0.134203,60974.0,60973.0,0.000818]
[1727942749479,0.1450053,60974.0,60973.0,0.000818]
[1727942749935,0.0138023,60974.0,60973.0,0.000818]
[1727942750197,0.0138023,60974.0,60973.0,0.164893]
[1727942750457,0.0138023,60974.0,60973.0,0.187893]
[1727942750890,0.0138023,60974.0,60973.0,0.190893]
[1727942751327,0.0148023,60974.0,60973.0,0.44157971]
[1727942751545,0.0158023,60974.0,60973.0,0.44957971]
[1727942751773,0.0148023,60974.0,60973.0,0.44957971]
[1727942751993,0.0174423,60974.0,60973.0,0.44957971]
[1727942752672,0.0174423,60974.0,60973.0,0.132188]
[1727942752954,0.0164423,60974.0,60973.0,0.255393]
[1727942753180,0.1476453,60974.0,60973.0,0.000818]
[1727942753419,0.1476453,60974.0,60973.0,0.033688]
[1727942753651,0.1486453,60974.0,60973.0,0.033688]
[1727942753868,0.0184423,60974.0,60973.0,0.041688]
[1727942754093,0.0154423,60974.0,60973.0,0.033688]
[1727942754343,0.0164423,60974.0,60973.0,0.033688]
[1727942754558,0.0174423,60974.0,60973.0,0.008818]
[1727942754774,0.0164423,60974.0,60973.0,0.008818]
[1727942755007,0.0154423,60974.0,60973.0,0.000818]
[1727942755279,0.1476453,60974.0,60973.0,0.000818]
[1727942755537,0.133843,60974.0,60973.0,0.000818]
[1727942755966,0.14754436,60974.0,60973.0,0.000818]
[1727942756396,0.14754436,60974.0,60973.0,0.132023]
[1727942756397,0.01534136,60974.0,60973.0,0.132023]
[1727942756613,0.01534136,60974.0,60973.0,0.164893]
[1727942756848,0.01734136,60974.0,60973.0,0.172893]
[1727942757069,0.01634136,60974.0,60973.0,0.164893]
[1727942757292,0.01634136,60974.0,60973.0,0.43607971]
[1727942757517,0.01634136,60974.0,60973.0,0.264893]
[1727942757518,0.01734136,60974.0,60973.0,0.264893]
[1727942758005,0.01734136,60974.0,60973.0,0.43607971]
[1727942758006,0.01834136,60974.0,60973.0,0.43607971]
[1727942758686,0.01834136,60974.0,60973.0,0.52767971]
[1727942758908,0.00164,60984.0,60983.0,0.187054]
[1727942759401,0.00164,60984.0,60983.0,0.05587]
[1727942760059,0.00164,60984.0,60983.0,0.187054]
[1727942760289,0.00164,60984.0,60983.0,0.03287]
[1727942760511,0.00164,60984.0,60983.0,0.131184]
[1727942760763,0.00164,60984.0,60983.0,0.199054]
[1727942760764,0.00364,60984.0,60983.0,0.199054]
[1727942761219,0.00364,60984.0,60983.0,0.187054]
[1727942761220,0.00264,60984.0,60983.0,0.187054]
[1727942761453,0.00164,60984.0,60983.0,0.05587]
[1727942761682,0.00264,60984.0,60983.0,0.199054]
[1727942761936,0.00264,60984.0,60983.0,0.36224071]
[1727942763925,0.00264,60984.0,60983.0,0.37324071]
[1727942764145,0.00164,60984.0,60983.0,0.36124071]
[1727942764368,0.00164,60984.0,60983.0,0.53654071]
[1727942764654,0.00164,60984.0,60983.0,0.55054071]
[1727942764899,0.00164,60984.0,60983.0,0.06687]
[1727942765120,0.132821,60984.0,60983.0,0.03287]
[1727942765339,0.00164,60984.0,60983.0,0.04487]
[1727942765576,0.00164,60984.0,60983.0,0.03287]
[1727942766051,0.00164,60984.0,60983.0,0.178054]
[1727942766510,0.00164,60984.0,60983.0,0.05787]
[1727942766737,0.00164,60984.0,60983.0,0.189054]
[1727942767227,0.00164,60984.0,60983.0,0.175054]
[1727942767476,0.00164,60984.0,60983.0,0.04387]
[1727942767722,0.00164,60984.0,60983.0,0.186054]
[1727942767956,0.132821,60984.0,60983.0,0.011]
[1727942768218,0.132821,60984.0,60983.0,0.022]
[1727942768452,0.264007,60984.0,60979.0,0.03287]
[1727942768674,0.131189,60981.0,60979.0,0.03287]
[1727942768927,0.131203,60974.0,60967.0,0.262433]
[1727942769150,0.131203,60974.0,60973.0,0.27830839]
[1727942769378,0.131203,60974.0,60973.0,0.000818]
[1727942770297,0.00264,60984.0,60973.0,0.000818]
[1727942770526,0.00264,60984.0,60975.0,0.20202553]
[1727942770754,0.131195,60978.0,60974.0,0.023]
[1727942770983,0.131203,60974.0,60973.0,0.000818]
[1727942771222,0.132203,60974.0,60973.0,0.008818]
[1727942771673,0.132203,60974.0,60973.0,0.000818]
[1727942771674,0.131203,60974.0,60973.0,0.000818]
[1727942772132,0.14482234,60974.0,60973.0,0.000818]
[1727942772663,0.14582234,60974.0,60973.0,0.009818]
[1727942773745,0.14582234,60974.0,60973.0,0.017818]
[1727942773977,0.14582234,60974.0,60973.0,0.009818]
[1727942774200,0.14582234,60974.0,60973.0,0.017818]
[1727942774666,0.01461934,60974.0,60973.0,0.017818]
[1727942774931,0.14746234,60974.0,60973.0,0.017818]
[1727942776953,0.01625934,60974.0,60973.0,0.050688]
[1727942777205,0.14746234,60974.0,60973.0,0.050688]
[1727942777503,0.00264,60974.0,60973.0,0.149023]
[1727942777782,0.01621263,60974.0,60973.0,0.149023]
[1727942778059,0.01621263,60974.0,60973.0,0.050688]
[1727942778334,0.133843,60974.0,60973.0,0.017818]
[1727942778595,0.133843,60974.0,60973.0,0.000818]
[1727942778596,0.14641563,60974.0,60973.0,0.000818]
[1727942778892,0.14641563,60974.0,60973.0,0.023818]
[1727942778893,0.14741563,60974.0,60973.0,0.023818]
[1727942779161,0.14741563,60974.0,60973.0,0.012818]
[1727942779441,0.14641563,60974.0,60973.0,0.008818]
[1727942780633,0.133843,60974.0,60973.0,0.017818]
[1727942780874,0.14739597,60974.0,60973.0,0.009818]
[1727942781116,0.132843,60974.0,60973.0,0.008818]
[1727942781346,0.14638454,60974.0,60973.0,0.009818]
[1727942781571,0.14738454,60974.0,60973.0,0.009818]
[1727942781797,0.14738454,60974.0,60973.0,0.017818]
[1727942782256,0.01618154,60974.0,60973.0,0.017818]
[1727942782475,0.01618154,60974.0,60973.0,0.050688]
[1727942783195,0.14738454,60974.0,60973.0,0.017818]
[1727942784368,0.24738454,60974.0,60973.0,0.017818]
[1727942784600,0.131218,60967.0,60966.0,0.23672839]
[1727942784832,0.14475954,60967.0,60966.0,0.23672839]
[1727942785069,0.13122,60966.0,60965.0,0.000819]
[1727942785349,0.14476154,60966.0,60965.0,0.000819]
[1727942787443,0.14485736,60966.0,60965.0,0.000819]
[1727942789055,0.14585736,60966.0,60965.0,0.000819]
[1727942790200,0.14485736,60966.0,60965.0,0.000819]
[1727942790687,0.14485736,60966.0,60965.0,0.001819]
[1727942790688,0.13122,60966.0,60965.0,0.001819]
[1727942791365,0.14487577,60966.0,60965.0,0.001819]
[1727942791851,0.14487577,60966.0,60965.0,0.000819]
[1727942792073,0.14587577,60966.0,60965.0,0.000819]
[1727942792300,0.14487577,60966.0,60965.0,0.000819]
[1727942793654,0.14587577,60966.0,60965.0,0.000819]
[1727942795775,0.6940499,60966.0,60965.0,0.000819]
[1727942795994,0.133229,60962.0,60961.0,0.0002]
[1727942796228,0.59599332,60962.0,60961.0,0.0002]
[1727942796449,0.45078342,60962.0,60961.0,0.0002]
[1727942796683,0.32018477,60962.0,60961.0,0.0002]
[1727942797407,0.22018477,60962.0,60961.0,0.0002]
[1727942798394,0.23018477,60962.0,60961.0,0.0022]
[1727942798632,0.22818477,60962.0,60961.0,0.0012]
[1727942798860,0.33318477,60962.0,60961.0,0.0012]
[1727942799091,0.33318477,60962.0,60961.0,0.0002]
[1727942799092,0.32018477,60962.0,60961.0,0.0002]
[1727942799612,0.33118477,60962.0,60961.0,0.0012]
[1727942799868,0.33118477,60962.0,60961.0,0.0002]
[1727942800125,0.322529,60962.0,60961.0,0.0002]
[1727942800615,0.33613374,60962.0,60961.0,0.0002]
[1727942801138,0.34013374,60962.0,60961.0,0.0002]
[1727942801835,0.32013374,60962.0,60961.0,0.0002]
[1727942802069,0.32113374,60962.0,60961.0,0.0002]
[1727942802298,0.32313374,60962.0,60961.0,0.0002]
[1727942802553,0.32213374,60962.0,60961.0,0.0002]
[1727942802786,0.32713374,60962.0,60961.0,0.0002]
[1727942803011,0.33113374,60962.0,60961.0,0.0002]
[1727942803496,0.310529,60962.0,60961.0,0.0002]
[1727942803948,0.131244,60955.0,60954.0,0.21910039]
[1727942804190,0.01357561,60955.0,60954.0,0.25199039]
[1727942804416,0.01357561,60955.0,60954.0,0.35034639]
[1727942804650,0.01357561,60955.0,60954.0,0.131246]
[1727942805347,0.01457561,60955.0,60954.0,0.138246]
[1727942805587,0.01557561,60955.0,60954.0,0.179136]
[1727942805871,0.01357561,60955.0,60954.0,0.03289]
[1727942806130,0.01457561,60955.0,60954.0,0.176136]
[1727942806369,0.01457561,60955.0,60954.0,0.170136]
[1727942806874,0.002,60955.0,60954.0,0.181136]
[1727942807139,0.01556733,60955.0,60954.0,0.181136]
[1727942807587,0.01456733,60955.0,60954.0,0.175136]
[1727942807815,0.01556733,60955.0,60954.0,0.05089]
[1727942808274,0.01556733,60955.0,60954.0,0.182136]
[1727942808389,0.01457569,60955.0,60954.0,0.03989]
[1727942808632,0.01457569,60955.0,60954.0,0.04589]
[1727942808833,0.01457569,60955.0,60954.0,0.03989]
[1727942809272,0.01557569,60955.0,60954.0,0.05089]
[1727942810585,0.002,60955.0,60954.0,0.05089]
[1727942810804,0.002,60955.0,60954.0,0.05171]
[1727942811211,0.01557456,60955.0,60954.0,0.05171]
[1727942813092,0.14681856,60955.0,60954.0,0.05171]
[1727942813344,0.14681856,60955.0,60954.0,0.01882]
[1727942813593,0.22591856,60955.0,60954.0,0.01882]
[1727942813847,0.212344,60955.0,60954.0,0.01882]
[1727942814080,0.42007,60955.0,60954.0,0.01882]
[1727942814308,0.68843918,60955.0,60954.0,0.01882]
[1727942814534,0.32397,60955.0,60954.0,0.00082]
[1727942814766,0.37238507,60955.0,60954.0,0.000464]
[1727942815022,0.32397,60955.0,60954.0,0.003464]
[1727942815259,0.37238039,60955.0,60954.0,0.000464]
[1727942815489,0.38038039,60955.0,60954.0,0.001464]
[1727942815717,0.38036171,60955.0,60954.0,0.000464]
[1727942815948,0.37236171,60955.0,60954.0,0.000464]
[1727942816202,0.32595132,60955.0,60954.0,0.000464]
[1727942816660,0.37435104,60955.0,60954.0,0.000464]
[1727942816914,0.38135104,60955.0,60954.0,0.001464]
[1727942817375,0.33295132,60955.0,60954.0,0.001464]
[1727942817618,0.42978333,60955.0,60954.0,0.001464]
[1727942817856,0.42978333,60955.0,60954.0,0.000464]
[1727942817857,0.42278333,60955.0,60954.0,0.000464]
[1727942818123,0.39855313,60955.0,60954.0,0.000464]
[1727942818373,0.39955313,60955.0,60954.0,0.000464]
[1727942819135,0.32695132,60955.0,60954.0,0.000464]
[1727942819415,0.39955313,60955.0,60954.0,0.000464]
[1727942819663,0.29624143,60955.0,60954.0,0.000464]
[1727942819895,0.01660732,60955.0,60954.0,0.000464]
[1727942820392,0.14785132,60955.0,60954.0,0.000464]
[1727942820617,0.14685132,60955.0,60954.0,0.000464]
[1727942820882,0.14785132,60955.0,60954.0,0.000464]
[1727942821433,0.0135909,60955.0,60954.0,0.000464]
[1727942821693,0.0155909,60955.0,60954.0,0.000464]
[1727942821955,0.0145909,60955.0,60954.0,0.000464]
[1727942822447,0.0145909,60955.0,60954.0,0.001464]
[1727942822740,0.0145909,60955.0,60954.0,0.1656]
[1727942822986,0.0135909,60955.0,60954.0,0.41620141]
[1727942823229,0.0135909,60955.0,60954.0,0.49680141]
[1727942823470,0.29417129,60967.0,60955.0,0.023]
[1727942823728,0.29417129,60967.0,60965.0,0.29466558]
[1727942824012,0.01521737,60966.0,60965.0,0.29466558]
[1727942824835,0.01621737,60966.0,60965.0,0.29466558]
[1727942825110,0.01621737,60966.0,60965.0,0.31827028]
[1727942825674,0.00364,60966.0,60965.0,0.33227028]
[1727942825887,0.00264,60966.0,60965.0,0.41157028]
[1727942826105,0.00364,60966.0,60965.0,0.42557028]
[1727942826329,0.00164,60966.0,60965.0,0.2580167]
[1727942826554,0.00164,60966.0,60965.0,0.0006047]
[1727942826778,0.13386,60966.0,60965.0,0.0146047]
[1727942826995,0.13386,60966.0,60965.0,0.0206047]
[1727942827239,0.00364,60966.0,60965.0,0.0534947]
[1727942827462,0.00264,60966.0,60965.0,0.1458267]
[1727942827957,0.00264,60966.0,60965.0,0.1707167]
[1727942828189,0.00264,60966.0,60965.0,0.1847167]
[1727942828417,0.00364,60966.0,60965.0,0.1847167]
[1727942828648,0.00264,60966.0,60965.0,0.35690341]
[1727942828875,0.00364,60966.0,60965.0,0.37090341]
[1727942829095,0.00264,60966.0,60965.0,0.35090341]
[1727942829565,0.00364,60966.0,60965.0,0.36490341]
[1727942829792,0.00464,60966.0,60965.0,0.37090341]
[1727942830304,0.00364,60966.0,60965.0,0.36490341]
[1727942830537,0.00364,60966.0,60965.0,0.1847167]
[1727942830538,0.00464,60966.0,60965.0,0.1847167]
[1727942831215,0.00464,60966.0,60965.0,0.37090341]
[1727942831432,0.00464,60966.0,60965.0,0.54630341]
[1727942831654,0.00464,60966.0,60965.0,0.74188313]
[1727942831879,0.00464,60966.0,60965.0,0.84188313]
[1727942832353,0.00164,60974.0,60973.0,0.164095]
[1727942832570,0.00164,60974.0,60973.0,0.63946143]
[1727942833047,0.00164,60974.0,60973.0,0.64006613]
[1727942833519,0.00164,60974.0,60973.0,0.74006613]
[1727942833736,0.00164,60974.0,60973.0,0.82266613]
[1727942834181,0.00264,60974.0,60973.0,0.82866613]
[1727942834616,0.00264,60974.0,60973.0,0.83066613]
[1727942835077,0.00164,60984.0,60983.0,0.382474]
[1727942835368,0.00164,60984.0,60983.0,0.82354043]
[1727942835563,0.24462039,60998.0,60997.0,0.164043]
[1727942835783,0.24462039,60998.0,60997.0,0.54580943]
[1727942836013,0.24462039,61012.0,61004.0,0.03289]
[1727942836245,0.24462039,61012.0,61010.0,0.19557972]
[1727942836487,0.24462039,61019.0,61015.0,0.131115]
[1727942836761,0.24462039,61019.0,61013.0,0.131118]
[1727942837028,0.262216,61019.0,61012.0,0.13112]
[1727942837277,0.131102,61022.0,61015.0,0.131115]
[1727942837511,0.26219,61025.0,61015.0,0.131115]
[1727942838306,0.00164,61027.0,61015.0,0.38258472]
[1727942838571,0.24462039,61025.0,61015.0,0.38258472]
[1727942838820,0.00164,61027.0,61015.0,0.54577143]
[1727942839066,0.24462039,61024.0,61015.0,0.54577143]
[1727942839282,0.00164,61027.0,61015.0,0.54577143]
[1727942839534,0.00164,61027.0,61015.0,0.55977143]
[1727942839773,0.00364,61016.0,61015.0,0.39658472]
[1727942840003,0.00364,61016.0,61015.0,0.04689]
[1727942840243,0.132753,61016.0,61015.0,0.04689]
[1727942840485,0.133753,61016.0,61015.0,0.06089]
[1727942840724,0.133753,61016.0,61015.0,0.028]
[1727942840989,0.13113,61008.0,61007.0,0.24462039]
[1727942841453,0.262256,61010.0,60999.0,0.0494824]
[1727942841729,0.262256,61010.0,61004.0,0.24462039]
[1727942841963,0.131147,61000.0,60999.0,0.0494824]
[1727942842417,0.340975,61005.0,60998.0,0.03289]
[1727942842418,0.0787,61005.0,60998.0,0.03289]
[1727942842640,0.0787,61005.0,61000.0,0.03289]
[1727942843053,0.262256,61010.0,60999.0,0.262299]
[1727942843321,0.0804,61013.0,61001.0,0.03289]
[1727942843549,0.131138,61005.0,61001.0,0.03289]
[1727942843774,0.131135,61006.0,61000.0,0.131147]
[1727942843996,0.131135,61006.0,61004.0,0.003]
[1727942844238,0.131135,61006.0,61000.0,0.172037]
[1727942844239,0.001,61005.0,61000.0,0.172037]
[1727942844455,0.131145,61001.0,61000.0,0.008]
[1727942844907,0.001,61005.0,61003.0,0.16403]
[1727942845354,0.132137,61005.0,61003.0,0.03289]
[1727942845590,0.131135,61006.0,61003.0,0.03289]
[1727942845819,0.262259,61009.0,61004.0,0.007]
[1727942845820,0.262262,61008.0,61004.0,0.007]
[1727942846050,0.132135,61006.0,61004.0,0.007]
[1727942846274,0.001,61006.0,61004.0,0.007]
[1727942846716,0.131136,61005.0,61004.0,0.007]
[1727942846969,0.131136,61005.0,61001.0,0.03289]
[1727942847216,0.262233,61015.0,61005.0,0.131136]
[1727942847217,0.001,61006.0,61005.0,0.131136]
[1727942847426,0.00164,61016.0,61005.0,0.19557972]
[1727942847667,0.00164,61016.0,61010.0,0.262251]
[1727942847881,0.132754,61016.0,61010.0,0.131126]
[1727942848098,0.00164,61016.0,61007.0,0.295152]
[1727942848324,0.00164,61016.0,61009.0,0.131128]
[1727942848325,0.131119,61013.0,61009.0,0.131128]
[1727942848777,0.00164,61016.0,61010.0,0.131125]
[1727942849002,0.00164,61016.0,61011.0,0.131123]
[1727942849003,0.132753,61016.0,61011.0,0.131123]
[1727942849223,0.132753,61016.0,61008.0,0.03289]
[1727942849224,0.00164,61016.0,61009.0,0.12620522]
[1727942849447,0.131118,61014.0,61009.0,0.12620522]
[1727942849684,0.00164,61016.0,61010.0,0.131124]
[1727942849901,0.00164,61016.0,61007.0,0.03289]
[1727942850118,0.00164,61016.0,61010.0,0.131125]
[1727942850355,0.262236,61014.0,61004.0,0.007]
[1727942850634,0.262269,61006.0,60995.0,0.03289]
[1727942850857,0.131138,61004.0,60998.0,0.131151]
[1727942851126,0.131142,61003.0,60998.0,0.131151]
[1727942851355,0.131139,61004.0,60999.0,0.164038]
[1727942851579,0.262274,61005.0,60999.0,0.03289]
[1727942851823,0.39341,61005.0,61004.0,0.002]
[1727942852063,0.131136,61005.0,61004.0,0.001]
[1727942853200,0.262247,61012.0,61004.0,0.03389]
[1727942853431,0.131131,61008.0,61004.0,0.132138]
[1727942853656,0.00164,61016.0,60997.0,0.50753009]
[1727942853657,0.262236,61014.0,61005.0,0.19557972]
[1727942853884,0.14448042,61013.0,61008.0,0.131128]
[1727942854104,0.262236,61014.0,61006.0,0.131133]
[1727942854105,0.01336042,61012.0,61006.0,0.131133]
[1727942854329,0.131126,61010.0,61006.0,0.131133]
[1727942854587,0.00164,61016.0,61007.0,0.262263]
[1727942854799,0.00164,61016.0,61009.0,0.131126]
[1727942855029,0.00164,61016.0,61006.0,0.262267]
[1727942855030,0.131116,61015.0,61010.0,0.131124]
[1727942855259,0.131117,61014.0,61011.0,0.03289]
[1727942855740,0.262232,61015.0,61011.0,0.03289]
[1727942855937,0.01336668,61014.0,61011.0,0.03289]
[1727942856140,0.01337118,61013.0,61011.0,0.03289]
[1727942856364,0.131118,61014.0,61011.0,0.03289]
[1727942856814,0.263868,61016.0,61011.0,0.03289]
[1727942857277,0.131126,61010.0,61009.0,0.003]
[1727942857502,0.131128,61009.0,61006.0,0.24462039]
[1727942857730,0.01339639,61008.0,61006.0,0.24462039]
[1727942857983,0.01339639,61008.0,61004.0,0.164028]
[1727942858227,0.01339639,61008.0,60999.0,0.0496185]
[1727942858228,0.27565839,61008.0,60999.0,0.0496185]
[1727942858459,0.262272,61006.0,60999.0,0.0496185]
[1727942858690,0.0833,61007.0,60999.0,0.1807675]
[1727942858913,0.262274,61005.0,60999.0,0.0496185]
[1727942859143,0.131146,61001.0,60999.0,0.0825085]
[1727942859385,0.01339639,61000.0,60998.0,0.03289]
[1727942859617,0.0833,61007.0,60997.0,0.24522509]
[1727942859618,0.131141,61003.0,60999.0,0.164039]
[1727942859871,0.14458237,61002.0,60999.0,0.03289]
[1727942860097,0.01343937,61001.0,60999.0,0.03789]
[1727942860322,0.0833,61007.0,61000.0,0.295182]
[1727942860541,0.01340053,61006.0,61003.0,0.03289]
[1727942860774,0.14453653,61005.0,61001.0,0.131144]
[1727942861005,0.001,61003.0,60999.0,0.021]
[1727942861234,0.01340053,61002.0,60999.0,0.141148]
[1727942861467,0.01340053,61002.0,61000.0,0.03289]
[1727942861704,0.131139,61004.0,61000.0,0.03889]
[1727942861705,0.01340053,61001.0,61000.0,0.03889]
[1727942861935,0.01340053,61003.0,61000.0,0.03889]
[1727942862412,0.01340053,61003.0,61000.0,0.170036]
[1727942862624,0.01340053,61003.0,61000.0,0.03889]
[1727942862839,0.01340053,61002.0,61000.0,0.03889]
[1727942863057,0.01340053,61002.0,61000.0,0.03289]
[1727942863274,0.01440053,61002.0,61000.0,0.03289]
[1727942863488,0.01340053,61001.0,61000.0,0.03289]
[1727942863947,0.01340053,61001.0,61000.0,0.04289]
[1727942864162,0.01340053,61001.0,61000.0,0.04389]
[1727942864424,0.001,61002.0,61000.0,0.05489]
[1727942864645,0.131142,61003.0,61000.0,0.04389]
[1727942864916,0.01444711,61001.0,61000.0,0.04489]
[1727942865831,0.01444711,61001.0,61000.0,0.176037]
[1727942866045,0.01344711,61001.0,61000.0,0.176037]
[1727942866286,0.01344711,61003.0,61000.0,0.176037]
[1727942866504,0.01444711,61002.0,61000.0,0.187037]
[1727942866722,0.01344711,61001.0,61000.0,0.187037]
[1727942866937,0.01344711,61001.0,61000.0,0.176037]
[1727942867160,0.001,61001.0,61000.0,0.05689]
[1727942867408,0.001,61001.0,61000.0,0.04489]
[1727942867645,0.131143,61002.0,61000.0,0.04389]
[1727942867879,0.01346123,61001.0,60999.0,0.000818]
[1727942868109,0.0144857,61001.0,61000.0,0.04489]
[1727942868353,0.001,61001.0,61000.0,0.04489]
[1727942868580,0.14563341,61001.0,61000.0,0.012]
[1727942869062,0.32293341,61001.0,61000.0,0.012]
[1727942869318,0.45759707,61001.0,61000.0,0.024]
[1727942869539,0.45759707,61001.0,61000.0,0.012]
[1727942869988,0.131147,61000.0,60999.0,0.000818]
[1727942870442,0.14463541,61000.0,60999.0,0.000818]
[1727942870902,0.306447,61000.0,60999.0,0.000818]
[1727942871139,0.31997262,61000.0,60999.0,0.000818]
[1727942871404,0.36799245,61000.0,60999.0,0.000818]
[1727942871636,0.51561153,61000.0,60999.0,0.000818]
[1727942871855,0.59164128,61000.0,60999.0,0.000818]
[1727942872706,0.59364128,61000.0,60999.0,0.000818]
[1727942872907,0.32397262,61000.0,60999.0,0.000818]
[1727942873317,0.32197262,61000.0,60999.0,0.000818]
[1727942873522,0.32397262,61000.0,60999.0,0.000818]
[1727942874147,0.22197262,61000.0,60999.0,0.000818]
[1727942874828,0.01952562,61000.0,60999.0,0.000818]
[1727942876022,0.004,61000.0,60999.0,0.000818]
[1727942876249,0.01747939,61000.0,60999.0,0.000818]
[1727942876487,0.01447939,61000.0,60999.0,0.033708]
[1727942876710,0.01647939,61000.0,60999.0,0.033708]
[1727942877146,0.13114,61004.0,60999.0,0.039708]
[1727942877365,0.262275,61005.0,60999.0,0.033708]
[1727942877594,0.01346369,61000.0,60999.0,0.006818]
[1727942878041,0.01346369,61000.0,60999.0,0.000818]
[1727942878258,0.01346369,61000.0,60999.0,0.012818]
[1727942878694,0.14461062,61000.0,60999.0,0.012818]
[1727942879610,0.14461062,61000.0,60999.0,0.008818]
[1727942882202,0.29455509,61000.0,60999.0,0.010818]
[1727942882659,0.29455509,61000.0,60999.0,0.005818]
[1727942882876,0.29555342,61000.0,60999.0,0.000818]
[1727942883107,0.29955342,61000.0,60999.0,0.000818]
[1727942884006,0.27536932,61000.0,60999.0,0.000818]
[1727942884280,0.22700895,61000.0,60999.0,0.000818]
[1727942884747,0.22300895,61000.0,60999.0,0.000818]
[1727942885716,0.22200895,61000.0,60999.0,0.000818]
[1727942886207,0.22300895,61000.0,60999.0,0.000818]
[1727942886452,0.26190737,61000.0,60999.0,0.000818]
[1727942886688,0.2763784,61000.0,60999.0,0.000818]
[1727942886905,0.2723784,61000.0,60999.0,0.000818]
[1727942887134,0.2723969,61000.0,60999.0,0.000818]
[1727942887356,0.2733969,61000.0,60999.0,0.000818]
[1727942889361,0.29757639,61000.0,60999.0,0.000818]
[1727942889586,0.22500809,61000.0,60999.0,0.000818]
[1727942889808,0.21717639,61000.0,60999.0,0.000818]
[1727942890031,0.14560809,61000.0,60999.0,0.000818]
[1727942890249,0.14660809,61000.0,60999.0,0.000818]
[1727942890480,0.19408956,61000.0,60999.0,0.000818]
[1727942890951,0.21917639,61000.0,60999.0,0.000818]
[1727942891181,0.3429686,61000.0,60999.0,0.000818]
[1727942891409,0.46391577,61000.0,60999.0,0.000818]
[1727942891641,0.59431377,61000.0,60999.0,0.000818]
[1727942892111,0.67001377,61000.0,60999.0,0.000818]